Workbook

Sheet Activités
A1: Type | B1: Id | C1: Summary | D1: critères d'acceptance | E1: lien vers une autre activité | F1: Points estimés | G1: Developpeur | H1: Status | I1: Priority | J1: Date création | K1: Date dernière modification | L1: Points réels | M1: delta estimés /réels | N1: Mots clefs | O1: Sprint
A2: Tâche | B2: 1 | F2: 12 | G2: VMT | H2: Développée | I2: H | J2: 2016-06-20 | K2: 2016-07-12 | L2: 48 | M2: =IF(L2="?","?",F2-L2) -> -36 | N2: MDD | O2: 1
A3: Story | B3: 2 | F3: ? | H3: Créée | I3: B | J3: 2016-06-20 | K3: 2016-06-20 | L3: ? | M3: ? | N3: Ergo | O3: 3
A4: Tache | B4: 3 | F4: 1 | G4: FLT | H4: Terminée | I4: H | J4: 2016-06-20 | K4: 2016-07-12 | L4: 0.5 | M4: 0.5 | N4: ergo | O4: 1
A5: Story | B5: 4 | F5: ? | H5: Créée | I5: M | J5: 2016-06-20 | K5: 2016-06-20 | L5: ? | M5: ? | N5: ergo | O5: 3
A6: Story | B6: 5 | F6: 2 | G6: VMT | H6: Créée | I6: M | J6: 2016-06-20 | K6: 2016-07-12 | L6: ? | M6: ? | N6: ergo | O6: 1
A7: Story | B7: 6 | F7: ? | H7: Créée | I7: M | J7: 2016-06-20 | K7: 2016-06-20 | L7: ? | M7: ? | N7: ergo | O7: 3
A8: Story | B8: 7 | F8: 2 | G8: FLT | H8: Créée | I8: M | J8: 2016-06-20 | K8: 2016-07-12 | L8: ? | M8: ? | N8: ergo | O8: 1
A9: Story | B9: 8 | F9: ? | H9: Créée | I9: M | J9: 2016-06-20 | K9: 2016-06-20 | L9: ? | M9: ? | N9: ergo | O9: 3
A10: Story | B10: 9 | F10: ? | H10: Créée | I10: M | J10: 2016-06-20 | K10: 2016-06-20 | L10: ? | M10: ? | N10: ergo | O10: 3
A11: Tache | B11: 10 | F11: 0 | H11: Rejetée | I11: H | J11: 2016-06-20 | K11: 2016-07-12 | L11: 0 | M11: 0 | N11: P&O | O11: 1
A12: Tache | B12: 11 | F12: 4 | G12: FLT | H12: Affectée | I12: H | J12: 2016-06-20 | K12: 2016-07-12 | L12: ? | M12: ? | N12: P&O | O12: 1
A13: Tache | B13: 12 | F13: 4 | G13: FLT | H13: Affectée | I13: H | J13: 2016-06-20 | K13: 2016-06-28 | L13: ? | M13: ? | N13: P&O | O13: 2
A14: Tache | B14: 13 | F14: 4 | G14: FLT | H14: Affectée | I14: H | J14: 2016-06-20 | K14: 2016-06-28 | L14: ? | M14: ? | N14: P&O | O14: 2
A15: Tache | B15: 14 | F15: 4 | G15: FLT | H15: Affectée | I15: H | J15: 2016-06-20 | K15: 2016-07-12 | L15: ? | M15: ? | N15: P&O | O15: 1
A16: Tache | B16: 15 | F16: 4 | G16: FLT | H16: Affectée | I16: H | J16: 2016-06-20 | K16: 2016-06-28 | L16: ? | M16: ? | N16: P&O | O16: 2
A17: Tache | B17: 16 | F17: 4 | G17: FLT | H17: Affectée | I17: H | J17: 2016-06-20 | K17: 2016-06-28 | L17: ? | M17: ? | N17: P&O | O17: 2
A18: Tache | B18: 17 | F18: 4 | G18: FLT | H18: Affectée | I18: H | J18: 2016-06-20 | K18: 2016-06-28 | L18: ? | M18: ? | N18: P&O | O18: 2
A19: Tache | B19: 18 | F19: 0 | G19: VMT | H19: Rejetée | I19: H | J19: 2016-06-20 | K19: 2016-07-12 | L19: 0 | M19: 0 | N19: migration | O19: 1
A20: Tache | B20: 19 | F20: 8 | G20: PGD | H20: Terminée | I20: H | J20: 2016-06-20 | K20: 2016-07-12 | L20: 30 | M20: -22 | N20: migration | O20: 1
A21: Tache | B21: 20 | F21: 6 | G21: VMT | H21: Affectée | I21: H | J21: 2016-06-20 | K21: 2016-07-12 | L21: ? | M21: ? | N21: migration | O21: 1
A22: Tache | B22: 21 | F22: 12 | G22: FLT | H22: Affectée | I22: H | J22: 2016-06-20 | K22: 2016-07-12 | L22: ? | M22: ? | N22: migration | O22: 1
A23: Tache | B23: 22 | F23: ? | H23: Créée | I23: H | J23: 2016-06-20 | K23: 2016-06-20 | L23: ? | M23: ? | N23: migration | O23: 3
A24: Tache | B24: 23 | F24: 16 | G24: FLT | H24: Affectée | I24: H | J24: 2016-06-20 | K24: 2016-07-12 | L24: ? | M24: ? | N24: migration | O24: 1
A25: Tache | B25: 24 | F25: 8 | G25: VHD | H25: Terminée | I25: H | J25: 2016-06-20 | K25: 2016-07-12 | L25: 4 | M25: 4 | N25: migration | O25: 1
A26: Tache | B26: 25 | E26: 1 | F26: ? | H26: Prête | I26: H | J26: 2016-06-20 | K26: 2016-07-12 | L26: ? | M26: ? | N26: migration | O26: 1
A27: Tache | B27: 26 | E27: 25 | F27: ? | H27: Prête | I27: H | J27: 2016-06-20 | K27: 2016-07-12 | L27: ? | M27: ? | N27: migration | O27: 1
A28: Tache | B28: 27 | F28: ? | H28: Prête | I28: H | J28: 2016-06-20 | K28: 2016-07-12 | L28: ? | M28: ? | N28: migration | O28: 1
A29: Tache | B29: 28 | F29: ? | H29: Prête | I29: H | J29: 2016-06-20 | K29: 2016-07-12 | L29: ? | M29: ? | N29: migration | O29: 1
A30: Tache | B30: 29 | F30: ? | H30: Prête | I30: H | J30: 2016-06-20 | K30: 2016-07-12 | L30: ? | M30: ? | N30: migration | O30: 1
A31: Tache | B31: 30 | F31: 8 | G31: VMT | H31: Affectée | I31: H | J31: 2016-06-20 | K31: 2016-07-12 | L31: ? | M31: ? | N31: migration | O31: 1
A32: Tache | B32: 31 | E32: 30 | F32: 1 | G32: VMT | H32: Prête | I32: H | J32: 2016-06-20 | K32: 2016-07-12 | L32: ? | M32: ? | N32: migration | O32: 1
A33: Story | B33: 32 | F33: 6 | G33: PGD | H33: Affectée | I33: M | J33: 2016-06-20 | K33: 2016-06-28 | L33: ? | M33: ? | N33: Génération_doc | O33: 3
A34: Story | B34: 33 | F34: 0.5 | G34: FLT | H34: Affectée | I34: H | J34: 2016-06-20 | K34: 2016-07-12 | L34: ? | M34: ? | N34: process | O34: 1
A35: Story | B35: 34 | F35: 0.5 | G35: FLT | H35: Affectée | I35: H | J35: 2016-06-20 | K35: 2016-07-12 | L35: ? | M35: ? | N35: process | O35: 1
A36: Story | B36: 35 | F36: 0.5 | G36: FLT | H36: Affectée | I36: H | J36: 2016-06-20 | K36: 2016-07-12 | L36: ? | M36: ? | N36: process | O36: 1
A37: Story | B37: 36 | F37: 0.5 | G37: FLT | H37: Affectée | I37: M | J37: 2016-06-20 | K37: 2016-07-12 | L37: ? | M37: ? | N37: process | O37: 1
A38: Story | B38: 37 | F38: 0.5 | G38: FLT | H38: Affectée | I38: M | J38: 2016-06-20 | K38: 2016-07-12 | L38: ? | M38: ? | N38: process | O38: 1
A39: Story | B39: 38 | F39: 0.5 | G39: FLT | H39: Affectée | I39: H | J39: 2016-06-24 | K39: 2016-07-12 | L39: ? | M39: ? | N39: Process | O39: 1
A40: Story | B40: 39 | F40: 0.5 | G40: FLT | H40: Affectée | I40: H | J40: 2016-06-20 | K40: 2016-07-12 | L40: ? | M40: ? | N40: process | O40: 1
A41: Story | B41: 40 | F41: 0.5 | G41: FLT | H41: Affectée | I41: H | J41: 2016-06-20 | K41: 2016-07-12 | L41: ? | M41: ? | N41: process | O41: 1
A42: Story | B42: 41 | F42: 0.5 | G42: FLT | H42: Affectée | I42: H | J42: 2016-06-20 | K42: 2016-07-12 | L42: ? | M42: ? | N42: process | O42: 1
A43: Story | B43: 42 | F43: 0.5 | G43: FLT | H43: Affectée | I43: H | J43: 2016-06-20 | K43: 2016-07-12 | L43: ? | M43: ? | N43: process | O43: 1
A44: Story | B44: 43 | F44: 0.5 | G44: FLT | H44: Affectée | I44: H | J44: 2016-06-20 | K44: 2016-07-12 | L44: ? | M44: ? | N44: process | O44: 1
A45: Story | B45: 44 | E45: 2 | F45: 0.5 | G45: FLT | H45: Créée | I45: M | J45: 2016-06-20 | K45: 2016-07-12 | L45: ? | M45: ? | N45: process | O45: 1
A46: Story | B46: 45 | F46: 0.5 | G46: FLT | H46: Affectée | I46: H | J46: 2016-06-20 | K46: 2016-07-12 | L46: ? | M46: ? | N46: process | O46: 1
A47: Story | B47: 46 | F47: 0.5 | G47: FLT | H47: Affectée | I47: H | J47: 2016-06-20 | K47: 2016-07-12 | L47: ? | M47: ? | N47: process | O47: 1
A48: Story | B48: 91 | F48: ? | H48: Prête | I48: H | J48: 2016-07-05 | K48: 2016-07-12 | L48: ? | M48: ? | N48: process | O48: 1
A49: Story | B49: 92 | F49: ? | H49: Prête | I49: H | J49: 2016-07-05 | K49: 2016-07-12 | L49: ? | M49: ? | N49: process | O49: 1
A50: Story | B50: 93 | F50: ? | H50: Prête | I50: H | J50: 2016-07-05 | K50: 2016-07-12 | L50: ? | M50: ? | N50: process | O50: 1
A51: Story | B51: 47 | F51: 0.5 | G51: FLT | H51: Affectée | I51: H | J51: 2016-06-20 | K51: 2016-07-12 | L51: ? | M51: ? | N51: process | O51: 1
A52: Story | B52: 94 | F52: ? | H52: Prête | I52: H | J52: 2016-07-05 | K52: 2016-07-12 | L52: ? | M52: ? | N52: process | O52: 1
A53: Story | B53: 49 | F53: 0.5 | G53: FLT | H53: Affectée | I53: H | J53: 2016-06-20 | K53: 2016-07-12 | L53: ? | M53: ? | N53: process | O53: 1
A54: Story | B54: 50 | F54: 0.5 | G54: FLT | H54: Affectée | I54: H | J54: 2016-06-20 | K54: 2016-07-12 | L54: ? | M54: ? | N54: process | O54: 1
A55: Story | B55: 95 | F55: ? | H55: Prête | I55: H | J55: 2016-07-05 | K55: 2016-07-12 | L55: ? | M55: ? | N55: process | O55: 1
A56: Story | B56: 51 | F56: 0 | H56: Rejetée | I56: M | J56: 2016-06-20 | K56: 2016-07-12 | L56: 0 | M56: 0 | N56: process | O56: 1
A57: Story | B57: 52 | F57: 0.5 | G57: FLT | H57: Affectée | I57: H | J57: 2016-06-20 | K57: 2016-07-12 | L57: ? | M57: ? | N57: process | O57: 1
A58: Story | B58: 53 | F58: 0.5 | G58: FLT | H58: Affectée | I58: H | J58: 2016-06-20 | K58: 2016-07-12 | L58: ? | M58: ? | N58: process | O58: 1
A59: Story | B59: 54 | F59: 0.5 | G59: FLT | H59: Affectée | I59: H | J59: 2016-06-20 | K59: 2016-07-12 | L59: ? | M59: ? | N59: process | O59: 1
A60: Story | B60: 55 | F60: 1 | G60: FLT | H60: Affectée | I60: H | J60: 2016-06-20 | K60: 2016-07-12 | L60: ? | M60: ? | N60: process | O60: 1
A61: Story | B61: 56 | F61: ? | H61: Prête | I61: H | J61: 2016-06-20 | K61: 2016-07-12 | L61: ? | M61: ? | N61: règle | O61: 1
A62: Story | B62: 57 | F62: ? | H62: Prête | I62: H | J62: 2016-06-20 | K62: 2016-07-12 | L62: ? | M62: ? | N62: règle | O62: 1
A63: Story | B63: 60 | F63: 0.5 | G63: FLT | H63: Affectée | I63: H | J63: 2016-06-20 | K63: 2016-07-12 | L63: ? | M63: ? | N63: process | O63: 1
A64: Story | B64: 60 | F64: 0.5 | G64: FLT | H64: Affectée | I64: H | J64: 2016-06-20 | K64: 2016-07-12 | L64: ? | M64: ? | N64: process | O64: 1
A65: Story | B65: 61 | F65: 0.5 | G65: FLT | H65: Affectée | I65: H | J65: 2016-06-20 | K65: 2016-07-12 | L65: ? | M65: ? | N65: process | O65: 1
A66: Story | B66: 62 | F66: 0.5 | G66: FLT | H66: Affectée | I66: H | J66: 2016-06-20 | K66: 2016-07-12 | L66: ? | M66: =IF(L66="?","?",F66-L66) -> ? | N66: process | O66: 1
A67: Story | B67: 63 | F67: ? | G67: LGD | H67: Créée | I67: M | J67: 2016-06-20 | L67: ? | M67: ? | N67: exploitation | O67: Hors projet
A68: Story | B68: 64 | F68: ? | G68: VHD | H68: Créée | I68: M | J68: 2016-06-20 | L68: ? | M68: ? | N68: exploitation | O68: Hors projet
A69: Story | B69: 65 | F69: 2 | G69: ACN | H69: Terminée | I69: H | J69: 2016-06-30 | K69: 2016-07-12 | L69: 2 | M69: 0 | N69: exploitation | O69: 1
A70: Story | B70: 66 | F70: 2 | G70: ACN | H70: Terminée | I70: H | J70: 2016-06-30 | K70: 2016-07-12 | L70: 2 | M70: 0 | N70: exploitation | O70: 1
A71: Story | B71: 67 | F71: 1 | G71: ACN | H71: Terminée | I71: H | J71: 2016-06-30 | K71: 2016-07-12 | L71: 1 | M71: 0 | N71: exploitation | O71: 1
A72: Tâche | B72: 68 | E72: 31 | F72: ? | H72: Prête | J72: 2016-06-28 | K72: 2016-07-12 | L72: ? | M72: ? | N72: exploitation | O72: 1
A73: Story | B73: 69 | E73: 68 | F73: 2 | G73: GEY/VMT | H73: Prête | I73: H | J73: 2016-06-30 | K73: 2016-07-12 | L73: ? | M73: ? | N73: exploitation | O73: 1
A74: Story | B74: 70 | F74: 2 | G74: PGD | H74: Terminée | I74: H | J74: 2016-06-28 | K74: 2016-07-12 | L74: 2 | M74: 0 | N74: exploitation | O74: 1
A75: Tâche | B75: 74 | F75: 3 | G75: XDX | H75: Terminée | J75: 2016-06-28 | K75: 2016-07-12 | L75: 3 | M75: 0 | N75: exploitation | O75: 1
A76: Tâche | B76: 75 | F76: ? | G76: ? | H76: Prête | J76: 2016-06-28 | K76: 2016-07-12 | L76: ? | M76: ? | N76: exploitation | O76: 1
A77: Tâche | B77: 77 | F77: 2 | G77: XDX | H77: Terminée | J77: 2016-06-28 | K77: 2016-07-12 | L77: 2 | M77: 0 | N77: exploitation | O77: 1
A78: Tâche | B78: 78 | F78: ? | H78: Créée | J78: 2016-06-28 | L78: ? | M78: ? | N78: exploitation | O78: 3
A79: Tâche | B79: 79 | F79: ? | H79: Créée | J79: 2016-06-28 | L79: ? | M79: ? | N79: exploitation | O79: 3
A80: Tâche | B80: 80 | F80: ? | H80: Prête | J80: 2016-06-28 | K80: 2016-07-12 | L80: ? | M80: ? | N80: exploitation | O80: 1
A81: Tâche | B81: 81 | F81: ? | H81: Créée | J81: 2016-06-28 | L81: ? | M81: ? | N81: exploitation | O81: 2
A82: Tâche | B82: 82 | F82: ? | H82: Créée | J82: 2016-06-28 | L82: ? | M82: ? | N82: exploitation | O82: 2
A83: Tâche | B83: 83 | F83: ? | H83: Créée | J83: 2016-06-28 | L83: ? | M83: ? | N83: exploitation | O83: 2
A84: Tâche | B84: 85 | F84: ? | H84: Créée | J84: 2016-06-28 | L84: ? | M84: ? | N84: exploitation | O84: 3
A85: Tâche | B85: 86 | F85: ? | H85: Créée | J85: 2016-06-28 | L85: ? | M85: ? | N85: exploitation | O85: 3
A86: Tâche | B86: 87 | F86: ? | H86: Créée | J86: 2016-06-28 | L86: ? | M86: ? | N86: exploitation | O86: 3
A87: Tâche | B87: 88 | F87: ? | H87: Créée | J87: 2016-06-28 | L87: ? | M87: ? | N87: exploitation | O87: 3
A88: Tâche | B88: 90 | F88: 2 | H88: Prête | J88: 2016-06-28 | K88: 2016-07-12 | L88: ? | M88: ? | N88: exploitation | O88: 1
A89: Tâche | B89: 95 | F89: 8 | G89: FLT | H89: Terminée | I89: H | J89: 2016-06-20 | K89: 2016-07-12 | L89: 8 | M89: 0 | N89: migration | O89: 1
A90: Story | B90: 96 | F90: 0.5 | H90: Prête | I90: H | J90: 2016-07-05 | K90: 2016-07-12 | L90: ? | M90: ? | N90: ergo | O90: 1
A91: Story | B91: 97 | F91: 0.5 | H91: Prête | I91: H | J91: 2016-07-05 | K91: 2016-07-12 | L91: ? | M91: ? | N91: ergo | O91: 1
A92: Tâche | B92: 98 | F92: 3 | G92: CSW | H92: Terminée | I92: H | J92: 2016-07-05 | K92: 2016-07-12 | L92: 3 | M92: 0 | O92: 1
A93: Tâche | B93: 99 | F93: 1 | G93: GTT | H93: Terminée | I93: H | J93: 2016-07-05 | K93: 2016-07-12 | L93: 3 | M93: -2 | O93: 1
A94: Tâche | B94: 100 | F94: 4 | G94: PBZ | H94: Terminée | I94: H | J94: 2016-07-05 | K94: 2016-07-12 | L94: 4 | M94: 0 | O94: 1
A95: Tache | B95: 101 | F95: 4 | G95: VMT | H95: Terminée | I95: H | J95: 2016-07-07 | K95: 2016-07-12 | L95: 1 | M95: 3 | O95: 1
A96: Tache | B96: 102 | F96: 4 | G96: VMT | H96: Terminée | I96: H | J96: 2016-07-07 | K96: 2016-07-12 | L96: 0.5 | M96: 3.5 | O96: 1
A97: Tache | B97: 103 | F97: 1 | G97: VMT | H97: Terminée | I97: H | J97: 2016-07-07 | K97: 2016-07-12 | L97: 0.5 | M97: 0.5 | O97: 1
A98: Tache | B98: 104 | F98: 1 | G98: VMT | H98: Terminée | I98: H | J98: 2016-07-07 | K98: 2016-07-12 | L98: 1 | M98: 0 | O98: 1
A99: Tache | B99: 105 | F99: 2 | G99: VMT | H99: Terminée | I99: H | J99: 2016-07-07 | K99: 2016-07-12 | L99: 0.5 | M99: 1.5 | O99: 1
A100: Tache | B100: 106 | F100: 0 | G100: VMT | H100: Terminée | I100: H | J100: 2016-07-07 | K100: 2016-07-12 | L100: 0.5 | M100: -0.5 | O100: 1
A101: Tache | B101: 107 | F101: 8 | G101: VMT | H101: Terminée | I101: H | J101: 2016-07-07 | K101: 2016-07-12 | L101: 3 | M101: 5 | O101: 1
A102: Tache | B102: 108 | F102: 8 | G102: VMT | H102: Terminée | I102: H | J102: 2016-07-07 | K102: 2016-07-12 | L102: 7 | M102: 1 | O102: 1
A103: Tache | B103: 109 | F103: 8 | G103: VMT | H103: Terminée | I103: H | J103: 2016-07-07 | K103: 2016-07-12 | L103: 8 | M103: 0 | O103: 1
A104: Tache | B104: 110 | F104: 0 | G104: VMT | H104: Rejetée | I104: H | J104: 2016-07-07 | K104: 2016-07-12 | L104: 0 | M104: 0 | O104: 1
A105: Tache | B105: 113 | F105: 10 | G105: PGD | H105: Prête | I105: H | J105: 2016-07-07 | L105: ? | M105: ? | O105: 2
A106: Tache | B106: 114 | F106: 2 | G106: VHD | H106: Prête | I106: H | J106: 2016-06-20 | K106: 2016-07-12 | L106: ? | M106: ? | N106: migration | O106: 1
A107: tache | B107: 115 | F107: ? | G107: JRM | H107: Prête | J107: 2016-07-07 | L107: ? | M107: ? | O107: 2
A108: Défaut | B108: 116 | J108: 2016-07-12 | L108: ? | M108: ?
A109: tache | B109: 117 | J109: 2016-07-12 | L109: ? | M109: ?
A110: Tâche | B110: 118 | G110: ? | J110: 2016-07-12 | L110: ? | M110: ?
A111: Tache | B111: 119 | F111: 8 | G111: VHD | H111: Prête | J111: 2016-07-12 | L111: ? | M111: ?
B112: 120 | F112: 2 | J112: 2016-07-12 | L112: ? | M112: ?
A113: Tache | B113: 121 | H113: Prête | J113: 2016-07-12 | L113: ? | M113: ?
L114: ? | M114: ?
L115: ? | M115: ?
L116: ? | M116: ?
L117: ? | M117: ?
L118: ? | M118: ?
L119: ? | M119: ?
L120: ? | M120: ?
L121: ? | M121: ?
L122: ? | M122: ?
L123: ? | M123: ?
L124: ? | M124: ?
L125: ? | M125: ?
L126: ? | M126: ?
L127: ? | M127: ?
L128: ? | M128: ?
L129: ? | M129: ?
L130: ? | M130: =IF(L130="?","?",F130-L130) -> ?
L131: ? | M131: ?
L132: ? | M132: ?
L133: ? | M133: ?
L134: ? | M134: ?
L135: ? | M135: ?
L136: ? | M136: ?
L137: ? | M137: ?
L138: ? | M138: ?
L139: ? | M139: ?
L140: ? | M140: ?
L141: ? | M141: ?
L142: ? | M142: ?
L143: ? | M143: ?
L144: ? | M144: ?
L145: ? | M145: ?
L146: ? | M146: ?
I147: * | L147: ? | M147: ?
L148: ? | M148: ?
L149: ? | M149: ?
L150: ? | M150: ?
L151: ? | M151: ?
L152: ? | M152: ?
L153: ? | M153: ?
L154: ? | M154: ?
L155: ? | M155: ?
L156: ? | M156: ?
L157: ? | M157: ?
L158: ? | M158: ?
L159: ? | M159: ?
L160: ? | M160: ?
L161: ? | M161: ?
L162: ? | M162: ?
L163: ? | M163: ?
L164: ? | M164: ?
L165: ? | M165: ?
L166: ? | M166: ?
L167: ? | M167: ?
L168: ? | M168: ?
L169: ? | M169: ?
L170: ? | M170: ?
L171: ? | M171: ?
L172: ? | M172: ?
L173: ? | M173: ?
L174: ? | M174: ?
L175: ? | M175: ?
L176: ? | M176: ?
L177: ? | M177: ?
L178: ? | M178: ?
L179: ? | M179: ?
L180: ? | M180: ?
L181: ? | M181: ?
L182: ? | M182: ?
L183: ? | M183: ?
L184: ? | M184: ?
L185: ? | M185: ?
L186: ? | M186: ?
L187: ? | M187: ?
L188: ? | M188: ?
L189: ? | M189: ?
L190: ? | M190: ?
L191: ? | M191: ?
L192: ? | M192: ?
L193: ? | M193: ?
L194: ? | M194: =IF(L194="?","?",F194-L194) -> ?
L195: ? | M195: ?
L196: ? | M196: ?
L197: ? | M197: ?
L198: ? | M198: ?
L199: ? | M199: ?
L200: ? | M200: ?
... 51 more rows

Sheet Liste de valeur
A1: Type | B1: Id | C1: Summary | D1: critères d'acceptance | E1: lien vers une autre activité | F1: createur | G1: Developpeur | H1: Status | I1: Priority | J1: Date création | K1: Date dernière modification | L1: Points estimés | M1: Points réels | N1: Tags (metier ou technique) | O1: Sprint
A2: Defaut | B2: n° chronologique | C2: Contenu libre avec les régles suivantes : un defaut référence la tache/doc/story concernée | D2: Contenu libre | E2: id de l'activité (cas rare dans un projet agile) | F2: PO ou developpeur | G2: un developpeur ou vide | H2: créee | I2: H | J2: date | K2: date | L2: 0.5 | N2: à définir avec le PO et les developpeurs. Peut-etre vide | O2: n° ou vide
A3: Tache | H3: evaluée | I3: M | L3: 1
A4: Document | H4: affectée | I4: B | L4: 2
A5: Story | H5: développée | L5: 3
H6: terminée | L6: 5
H7: rejetée/invalide | L7: 8
L8: 13
L9: Si >13, à découper

Sheet sprint
A1: Sprint | B1: # créée | C1: # prête | D1: # Evaluée | E1: # Affectée | F1: # Développée | G1: # Terminée | H1: # Rejetée | I1: # sans point | J1: Non Vide | K1: manquant | L1: mal saisie | M1: Max PPS | N1: ∑ Charge | O1: VHD | P1: XDX | Q1: PGD | R1: FVB | S1: ACN | T1: JRM | U1: VMT | V1: FLT | W1: CSW | X1: GTT | Y1: PBZ | Z1: GEY | AA1: JDY
A2: All | B2: =COUNTIF(Activités!H:H,"Créée") -> 20 | C2: =COUNTIF(Activités!H:H,"Prête") -> 25 | D2: =COUNTIF(Activités!H:H,"Evaluée") -> 0 | E2: =COUNTIF(Activités!H:H,"Affectée") -> 36 | F2: =COUNTIF(Activités!H:H,"Développée") -> 1 | G2: =COUNTIF(Activités!H:H,"Terminée") -> 22 | H2: =COUNTIF(Activités!H:H,"Rejetée") -> 4 | I2: =COUNTIF(Activités!H:H,I1) -> 0 | J2: =COUNTA(Activités!H$2:H$65529) -> 108 | K2: =COUNTA(Activités!C$2:C$65529)-J2 -> -107 | L2: =J2-SUM(Activités!P2:W2) -> 108 | N2: =SUM(O2:AD2) -> 207 | O2: =SUMIF(Activités!G:G,O1,Activités!F:F) -> 18 | P2: =SUMIF(Activités!G:G,P1,Activités!F:F) -> 5 | Q2: =SUMIF(Activités!G:G,Q1,Activités!F:F) -> 26 | R2: =SUMIF(Activités!G:G,R1,Activités!F:F) -> 0 | S2: =SUMIF(Activités!G:G,S1,Activités!F:F) -> 5 | T2: =SUMIF(Activités!G:G,T1,Activités!F:F) -> 0 | U2: =SUMIF(Activités!G:G,U1,Activités!F:F) -> 65 | V2: =SUMIF(Activités!G:G,V1,Activités!F:F) -> 80 | W2: =SUMIF(Activités!G:G,W1,Activités!F:F) -> 3 | X2: =SUMIF(Activités!G:G,X1,Activités!F:F) -> 1 | Y2: =SUMIF(Activités!G:G,Y1,Activités!F:F) -> 4 | Z2: =SUMIF(Activités!G:G,Z1,Activités!F:F) -> 0 | AA2: =SUMIF(Activités!G:G,AA1,Activités!F:F) -> 0 | AB2: =SUMIF(Activités!G:G,AB1,Activités!F:F) -> 0 | AC2: =SUMIF(Activités!G:G,AC1,Activités!F:F) -> 0 | AD2: =SUMIF(Activités!G:G,AD1,Activités!F:F) -> 0
A3: 1 | B3: =COUNTIFS(Activités!H:H,"Créée",Activités!O:O,1) -> 3 | C3: =COUNTIFS(Activités!H:H,"Prête",Activités!O:O,1) -> 21 | D3: =COUNTIFS(Activités!H:H,"Evaluée",Activités!O:O,1) -> 0 | E3: =COUNTIFS(Activités!H:H,"Affectée",Activités!O:O,1) -> 30 | F3: =COUNTIFS(Activités!H:H,"Développée",Activités!O:O,1) -> 1 | G3: =COUNTIFS(Activités!H:H,"Terminée",Activités!O:O,1) -> 22 | H3: =COUNTIFS(Activités!H:H,"Rejetée",Activités!O:O,1) -> 4 | I3: =COUNTIFS(Activités!F:F,"?",Activités!O:O,1) -> 15 | M3: 88 | N3: =SUM(O3:AD3) -> 163 | O3: =SUMIFS(Activités!F:F,Activités!G:G,O1,Activités!O:O,1) -> 10 | P3: =SUMIFS(Activités!F:F,Activités!G:G,P1,Activités!O:O,1) -> 5 | Q3: =SUMIFS(Activités!F:F,Activités!G:G,Q1,Activités!O:O,1) -> 10 | R3: =SUMIFS(Activités!F:F,Activités!G:G,R1,Activités!O:O,1) -> 0 | S3: =SUMIFS(Activités!F:F,Activités!G:G,S1,Activités!O:O,1) -> 5 | T3: =SUMIFS(Activités!F:F,Activités!G:G,T1,Activités!O:O,1) -> 0 | U3: =SUMIFS(Activités!F:F,Activités!G:G,U1,Activités!O:O,1) -> 65 | V3: =SUMIFS(Activités!F:F,Activités!G:G,V1,Activités!O:O,1) -> 60 | W3: =SUMIFS(Activités!F:F,Activités!G:G,W1,Activités!O:O,1) -> 3 | X3: =SUMIFS(Activités!F:F,Activités!G:G,X1,Activités!O:O,1) -> 1 | Y3: =SUMIFS(Activités!F:F,Activités!G:G,Y1,Activités!O:O,1) -> 4 | Z3: =SUMIFS(Activités!F:F,Activités!G:G,Z1,Activités!O:O,1) -> 0 | AA3: =SUMIFS(Activités!F:F,Activités!G:G,AA1,Activités!O:O,1) -> 0
A4: 2 | B4: =COUNTIFS(Activités!H:H,"Créée",Activités!O:O,2) -> 3 | C4: =COUNTIFS(Activités!H:H,"Prête",Activités!O:O,2) -> 2 | D4: =COUNTIFS(Activités!H:H,"Evaluée",Activités!O:O,2) -> 0 | E4: =COUNTIFS(Activités!H:H,"Affectée",Activités!O:O,2) -> 5 | F4: =COUNTIFS(Activités!H:H,"Développée",Activités!O:O,2) -> 0 | G4: =COUNTIFS(Activités!H:H,"Terminée",Activités!O:O,2) -> 0 | H4: =COUNTIFS(Activités!H:H,"Rejetée",Activités!O:O,2) -> 0 | I4: =COUNTIFS(Activités!F:F,"?",Activités!O:O,2) -> 4 | M4: 64 | N4: =SUM(O4:AD4) -> 30 | O4: =SUMIFS(Activités!F:F,Activités!G:G,O1,Activités!O:O,2) -> 0 | P4: =SUMIFS(Activités!F:F,Activités!G:G,P1,Activités!O:O,2) -> 0 | Q4: =SUMIFS(Activités!F:F,Activités!G:G,Q1,Activités!O:O,2) -> 10 | R4: =SUMIFS(Activités!F:F,Activités!G:G,R1,Activités!O:O,2) -> 0 | S4: =SUMIFS(Activités!F:F,Activités!G:G,S1,Activités!O:O,2) -> 0 | T4: =SUMIFS(Activités!F:F,Activités!G:G,T1,Activités!O:O,2) -> 0 | U4: =SUMIFS(Activités!F:F,Activités!G:G,U1,Activités!O:O,2) -> 0 | V4: =SUMIFS(Activités!F:F,Activités!G:G,V1,Activités!O:O,2) -> 20 | W4: =SUMIFS(Activités!F:F,Activités!G:G,W1,Activités!O:O,2) -> 0 | X4: =SUMIFS(Activités!F:F,Activités!G:G,X1,Activités!O:O,2) -> 0 | Y4: =SUMIFS(Activités!F:F,Activités!G:G,Y1,Activités!O:O,2) -> 0 | Z4: =SUMIFS(Activités!F:F,Activités!G:G,Z1,Activités!O:O,2) -> 0 | AA4: =SUMIFS(Activités!F:F,Activités!G:G,AA1,Activités!O:O,2) -> 0
A5: 3 | B5: =COUNTIFS(Activités!H:H,"Créée",Activités!O:O,3) -> 12 | C5: =COUNTIFS(Activités!H:H,"Prête",Activités!O:O,3) -> 0 | D5: =COUNTIFS(Activités!H:H,"Evaluée",Activités!O:O,3) -> 0 | E5: =COUNTIFS(Activités!H:H,"Affectée",Activités!O:O,3) -> 1 | F5: =COUNTIFS(Activités!H:H,"Développée",Activités!O:O,3) -> 0 | G5: =COUNTIFS(Activités!H:H,"Terminée",Activités!O:O,3) -> 0 | H5: =COUNTIFS(Activités!H:H,"Rejetée",Activités!O:O,3) -> 0 | I5: =COUNTIFS(Activités!F:F,"?",Activités!O:O,3) -> 12 | M5: 64 | N5: =SUM(O5:AD5) -> 6 | O5: =SUMIFS(Activités!F:F,Activités!G:G,O1,Activités!O:O,3) -> 0 | P5: =SUMIFS(Activités!F:F,Activités!G:G,P1,Activités!O:O,3) -> 0 | Q5: =SUMIFS(Activités!F:F,Activités!G:G,Q1,Activités!O:O,3) -> 6 | R5: =SUMIFS(Activités!F:F,Activités!G:G,R1,Activités!O:O,3) -> 0 | S5: =SUMIFS(Activités!F:F,Activités!G:G,S1,Activités!O:O,3) -> 0 | T5: =SUMIFS(Activités!F:F,Activités!G:G,T1,Activités!O:O,3) -> 0 | U5: =SUMIFS(Activités!F:F,Activités!G:G,U1,Activités!O:O,3) -> 0 | V5: =SUMIFS(Activités!F:F,Activités!G:G,V1,Activités!O:O,3) -> 0 | W5: =SUMIFS(Activités!F:F,Activités!G:G,W1,Activités!O:O,3) -> 0 | X5: =SUMIFS(Activités!F:F,Activités!G:G,X1,Activités!O:O,3) -> 0 | Y5: =SUMIFS(Activités!F:F,Activités!G:G,Y1,Activités!O:O,3) -> 0 | Z5: =SUMIFS(Activités!F:F,Activités!G:G,Z1,Activités!O:O,3) -> 0 | AA5: =SUMIFS(Activités!F:F,Activités!G:G,AA1,Activités!O:O,3) -> 0
A6: 4 | B6: =COUNTIFS(Activités!H:H,"Créée",Activités!O:O,4) -> 0 | C6: =COUNTIFS(Activités!H:H,"Prête",Activités!O:O,4) -> 0 | D6: =COUNTIFS(Activités!H:H,"Evaluée",Activités!O:O,4) -> 0 | E6: =COUNTIFS(Activités!H:H,"Affectée",Activités!O:O,4) -> 0 | F6: =COUNTIFS(Activités!H:H,"Développée",Activités!O:O,4) -> 0 | G6: =COUNTIFS(Activités!H:H,"Terminée",Activités!O:O,4) -> 0 | H6: =COUNTIFS(Activités!H:H,"Rejetée",Activités!O:O,4) -> 0 | I6: =COUNTIFS(Activités!F:F,"?",Activités!O:O,4) -> 0 | M6: 64 | N6: 0 | O6: =SUMIFS(Activités!F:F,Activités!G:G,O1,Activités!O:O,4) -> 0 | P6: =SUMIFS(Activités!F:F,Activités!G:G,P1,Activités!O:O,4) -> 0 | Q6: =SUMIFS(Activités!F:F,Activités!G:G,Q1,Activités!O:O,4) -> 0 | R6: =SUMIFS(Activités!F:F,Activités!G:G,R1,Activités!O:O,4) -> 0 | S6: =SUMIFS(Activités!F:F,Activités!G:G,S1,Activités!O:O,4) -> 0 | T6: =SUMIFS(Activités!F:F,Activités!G:G,T1,Activités!O:O,4) -> 0 | U6: =SUMIFS(Activités!F:F,Activités!G:G,U1,Activités!O:O,4) -> 0 | V6: =SUMIFS(Activités!F:F,Activités!G:G,V1,Activités!O:O,4) -> 0 | W6: =SUMIFS(Activités!F:F,Activités!G:G,W1,Activités!O:O,4) -> 0 | X6: =SUMIFS(Activités!F:F,Activités!G:G,X1,Activités!O:O,4) -> 0 | Y6: =SUMIFS(Activités!F:F,Activités!G:G,Y1,Activités!O:O,4) -> 0 | Z6: =SUMIFS(Activités!F:F,Activités!G:G,Z1,Activités!O:O,4) -> 0 | AA6: =SUMIFS(Activités!F:F,Activités!G:G,AA1,Activités!O:O,4) -> 0
A7: 5 | B7: =COUNTIFS(Activités!H:H,"Créée",Activités!O:O,5) -> 0 | C7: =COUNTIFS(Activités!H:H,"Prête",Activités!O:O,5) -> 0 | D7: =COUNTIFS(Activités!H:H,"Evaluée",Activités!O:O,5) -> 0 | E7: =COUNTIFS(Activités!H:H,"Affectée",Activités!O:O,5) -> 0 | F7: =COUNTIFS(Activités!H:H,"Développée",Activités!O:O,5) -> 0 | G7: =COUNTIFS(Activités!H:H,"Terminée",Activités!O:O,5) -> 0 | H7: =COUNTIFS(Activités!H:H,"Rejetée",Activités!O:O,5) -> 0 | I7: =COUNTIFS(Activités!F:F,"?",Activités!O:O,5) -> 0 | N7: 0 | O7: =SUMIFS(Activités!F:F,Activités!G:G,O1,Activités!O:O,5) -> 0 | P7: =SUMIFS(Activités!F:F,Activités!G:G,P1,Activités!O:O,5) -> 0 | Q7: =SUMIFS(Activités!F:F,Activités!G:G,Q1,Activités!O:O,5) -> 0 | R7: =SUMIFS(Activités!F:F,Activités!G:G,R1,Activités!O:O,5) -> 0 | S7: =SUMIFS(Activités!F:F,Activités!G:G,S1,Activités!O:O,5) -> 0 | T7: =SUMIFS(Activités!F:F,Activités!G:G,T1,Activités!O:O,5) -> 0 | U7: =SUMIFS(Activités!F:F,Activités!G:G,U1,Activités!O:O,5) -> 0 | V7: =SUMIFS(Activités!F:F,Activités!G:G,V1,Activités!O:O,5) -> 0 | W7: =SUMIFS(Activités!F:F,Activités!G:G,W1,Activités!O:O,5) -> 0 | X7: =SUMIFS(Activités!F:F,Activités!G:G,X1,Activités!O:O,5) -> 0 | Y7: =SUMIFS(Activités!F:F,Activités!G:G,Y1,Activités!O:O,5) -> 0 | Z7: =SUMIFS(Activités!F:F,Activités!G:G,Z1,Activités!O:O,5) -> 0 | AA7: =SUMIFS(Activités!F:F,Activités!G:G,AA1,Activités!O:O,5) -> 0
A8: 6 | B8: =COUNTIFS(Activités!H:H,"Créée",Activités!O:O,6) -> 0 | C8: =COUNTIFS(Activités!H:H,"Prête",Activités!O:O,6) -> 0 | D8: =COUNTIFS(Activités!H:H,"Evaluée",Activités!O:O,6) -> 0 | E8: =COUNTIFS(Activités!H:H,"Affectée",Activités!O:O,6) -> 0 | F8: =COUNTIFS(Activités!H:H,"Développée",Activités!O:O,6) -> 0 | G8: =COUNTIFS(Activités!H:H,"Terminée",Activités!O:O,6) -> 0 | H8: =COUNTIFS(Activités!H:H,"Rejetée",Activités!O:O,6) -> 0 | I8: =COUNTIFS(Activités!F:F,"?",Activités!O:O,6) -> 0 | N8: 0 | O8: =SUMIFS(Activités!F:F,Activités!G:G,O1,Activités!O:O,6) -> 0 | P8: =SUMIFS(Activités!F:F,Activités!G:G,P1,Activités!O:O,6) -> 0 | Q8: =SUMIFS(Activités!F:F,Activités!G:G,Q1,Activités!O:O,6) -> 0 | R8: =SUMIFS(Activités!F:F,Activités!G:G,R1,Activités!O:O,6) -> 0 | S8: =SUMIFS(Activités!F:F,Activités!G:G,S1,Activités!O:O,6) -> 0 | T8: =SUMIFS(Activités!F:F,Activités!G:G,T1,Activités!O:O,6) -> 0 | U8: =SUMIFS(Activités!F:F,Activités!G:G,U1,Activités!O:O,6) -> 0 | V8: =SUMIFS(Activités!F:F,Activités!G:G,V1,Activités!O:O,6) -> 0 | W8: =SUMIFS(Activités!F:F,Activités!G:G,W1,Activités!O:O,6) -> 0 | X8: =SUMIFS(Activités!F:F,Activités!G:G,X1,Activités!O:O,6) -> 0 | Y8: =SUMIFS(Activités!F:F,Activités!G:G,Y1,Activités!O:O,6) -> 0 | Z8: =SUMIFS(Activités!F:F,Activités!G:G,Z1,Activités!O:O,6) -> 0 | AA8: =SUMIFS(Activités!F:F,Activités!G:G,AA1,Activités!O:O,6) -> 0
A9: 7 | B9: =COUNTIFS(Activités!H:H,"Créée",Activités!O:O,7) -> 0 | C9: =COUNTIFS(Activités!H:H,"Prête",Activités!O:O,7) -> 0 | D9: =COUNTIFS(Activités!H:H,"Evaluée",Activités!O:O,7) -> 0 | E9: =COUNTIFS(Activités!H:H,"Affectée",Activités!O:O,7) -> 0 | F9: =COUNTIFS(Activités!H:H,"Développée",Activités!O:O,7) -> 0 | G9: =COUNTIFS(Activités!H:H,"Terminée",Activités!O:O,7) -> 0 | H9: =COUNTIFS(Activités!H:H,"Rejetée",Activités!O:O,7) -> 0 | I9: =COUNTIFS(Activités!F:F,"?",Activités!O:O,7) -> 0 | N9: 0 | O9: =SUMIFS(Activités!F:F,Activités!G:G,O1,Activités!O:O,7) -> 0 | P9: =SUMIFS(Activités!F:F,Activités!G:G,P1,Activités!O:O,7) -> 0 | Q9: =SUMIFS(Activités!F:F,Activités!G:G,Q1,Activités!O:O,7) -> 0 | R9: =SUMIFS(Activités!F:F,Activités!G:G,R1,Activités!O:O,7) -> 0 | S9: =SUMIFS(Activités!F:F,Activités!G:G,S1,Activités!O:O,7) -> 0 | T9: =SUMIFS(Activités!F:F,Activités!G:G,T1,Activités!O:O,7) -> 0 | U9: =SUMIFS(Activités!F:F,Activités!G:G,U1,Activités!O:O,7) -> 0 | V9: =SUMIFS(Activités!F:F,Activités!G:G,V1,Activités!O:O,7) -> 0 | W9: =SUMIFS(Activités!F:F,Activités!G:G,W1,Activités!O:O,7) -> 0 | X9: =SUMIFS(Activités!F:F,Activités!G:G,X1,Activités!O:O,7) -> 0 | Y9: =SUMIFS(Activités!F:F,Activités!G:G,Y1,Activités!O:O,7) -> 0 | Z9: =SUMIFS(Activités!F:F,Activités!G:G,Z1,Activités!O:O,7) -> 0 | AA9: =SUMIFS(Activités!F:F,Activités!G:G,AA1,Activités!O:O,7) -> 0
A10: 8 | B10: =COUNTIFS(Activités!H:H,"Créée",Activités!O:O,8) -> 0 | C10: =COUNTIFS(Activités!H:H,"Prête",Activités!O:O,8) -> 0 | D10: =COUNTIFS(Activités!H:H,"Evaluée",Activités!O:O,8) -> 0 | E10: =COUNTIFS(Activités!H:H,"Affectée",Activités!O:O,8) -> 0 | F10: =COUNTIFS(Activités!H:H,"Développée",Activités!O:O,8) -> 0 | G10: =COUNTIFS(Activités!H:H,"Terminée",Activités!O:O,8) -> 0 | H10: =COUNTIFS(Activités!H:H,"Rejetée",Activités!O:O,8) -> 0 | I10: =COUNTIFS(Activités!F:F,"?",Activités!O:O,8) -> 0 | N10: 0 | O10: =SUMIFS(Activités!F:F,Activités!G:G,O1,Activités!O:O,8) -> 0 | P10: =SUMIFS(Activités!F:F,Activités!G:G,P1,Activités!O:O,8) -> 0 | Q10: =SUMIFS(Activités!F:F,Activités!G:G,Q1,Activités!O:O,8) -> 0 | R10: =SUMIFS(Activités!F:F,Activités!G:G,R1,Activités!O:O,8) -> 0 | S10: =SUMIFS(Activités!F:F,Activités!G:G,S1,Activités!O:O,8) -> 0 | T10: =SUMIFS(Activités!F:F,Activités!G:G,T1,Activités!O:O,8) -> 0 | U10: =SUMIFS(Activités!F:F,Activités!G:G,U1,Activités!O:O,8) -> 0 | V10: =SUMIFS(Activités!F:F,Activités!G:G,V1,Activités!O:O,8) -> 0 | W10: =SUMIFS(Activités!F:F,Activités!G:G,W1,Activités!O:O,8) -> 0 | X10: =SUMIFS(Activités!F:F,Activités!G:G,X1,Activités!O:O,8) -> 0 | Y10: =SUMIFS(Activités!F:F,Activités!G:G,Y1,Activités!O:O,8) -> 0 | Z10: =SUMIFS(Activités!F:F,Activités!G:G,Z1,Activités!O:O,8) -> 0 | AA10: =SUMIFS(Activités!F:F,Activités!G:G,AA1,Activités!O:O,8) -> 0
A11: 9
A12: 10
B14: point créée | C14: point prête | D14: point Evaluée | E14: point Affectée | F14: point Développée | G14: point Terminée | H14: point Rejetée | I14: Point Moy x #sans point | M14: =TODAY() -> 2016-08-03
A15: All | B15: =SUMIFS(Activités!F:F,Activités!H:H,"Créée") -> 4.5 | C15: =SUMIFS(Activités!F:F,Activités!H:H,"Prête") -> 26 | D15: =SUMIFS(Activités!F:F,Activités!H:H,"Evaluée") -> 0 | E15: =SUMIFS(Activités!F:F,Activités!H:H,"Affectée") -> 88.5 | F15: =SUMIFS(Activités!F:F,Activités!H:H,"Développée") -> 12 | G15: =SUMIFS(Activités!F:F,Activités!H:H,"Terminée") -> 81 | H15: =SUMIFS(Activités!F:F,Activités!H:H,"Rejetée") -> 0 | I15: =SUM(B15:H15)/J2 -> 1.962962963
A16: 1 | B16: =SUMIFS(Activités!F:F,Activités!H:H,"Créée",Activités!O:O,1) -> 4.5 | C16: =SUMIFS(Activités!F:F,Activités!H:H,"Prête",Activités!O:O,1) -> 8 | D16: =SUMIFS(Activités!F:F,Activités!H:H,"Evaluée",Activités!O:O,1) -> 0 | E16: =SUMIFS(Activités!F:F,Activités!H:H,"Affectée",Activités!O:O,1) -> 62.5 | F16: =SUMIFS(Activités!F:F,Activités!H:H,"Développée",Activités!O:O,1) -> 12 | G16: =SUMIFS(Activités!F:F,Activités!H:H,"Terminée",Activités!O:O,1) -> 81 | H16: =SUMIFS(Activités!F:F,Activités!H:H,"Rejetée",Activités!O:O,1) -> 0 | I16: =SUM(B16:H16)/SUM(B3:H3)*I3 -> 31.11111111
A17: 2 | B17: =SUMIFS(Activités!F:F,Activités!H:H,"Créée",Activités!O:O,2) -> 0 | C17: =SUMIFS(Activités!F:F,Activités!H:H,"Prête",Activités!O:O,2) -> 10 | D17: =SUMIFS(Activités!F:F,Activités!H:H,"Evaluée",Activités!O:O,2) -> 0 | E17: =SUMIFS(Activités!F:F,Activités!H:H,"Affectée",Activités!O:O,2) -> 20 | F17: =SUMIFS(Activités!F:F,Activités!H:H,"Développée",Activités!O:O,2) -> 0 | G17: =SUMIFS(Activités!F:F,Activités!H:H,"Terminée",Activités!O:O,2) -> 0 | H17: =SUMIFS(Activités!F:F,Activités!H:H,"Rejetée",Activités!O:O,2) -> 0 | I17: =SUM(B17:H17)/SUM(B4:H4)*I4 -> 12
A18: 3 | B18: =SUMIFS(Activités!F:F,Activités!H:H,"Créée",Activités!O:O,3) -> 0 | C18: =SUMIFS(Activités!F:F,Activités!H:H,"Prête",Activités!O:O,3) -> 0 | D18: =SUMIFS(Activités!F:F,Activités!H:H,"Evaluée",Activités!O:O,3) -> 0 | E18: =SUMIFS(Activités!F:F,Activités!H:H,"Affectée",Activités!O:O,3) -> 6 | F18: =SUMIFS(Activités!F:F,Activités!H:H,"Développée",Activités!O:O,3) -> 0 | G18: =SUMIFS(Activités!F:F,Activités!H:H,"Terminée",Activités!O:O,3) -> 0 | H18: =SUMIFS(Activités!F:F,Activités!H:H,"Rejetée",Activités!O:O,3) -> 0 | I18: =SUM(B18:H18)/SUM(B5:H5)*I5 -> 5.538461538
A19: 4 | B19: =SUMIFS(Activités!F:F,Activités!H:H,"Créée",Activités!O:O,4) -> 0 | C19: =SUMIFS(Activités!F:F,Activités!H:H,"Prête",Activités!O:O,4) -> 0 | D19: =SUMIFS(Activités!F:F,Activités!H:H,"Evaluée",Activités!O:O,4) -> 0 | E19: =SUMIFS(Activités!F:F,Activités!H:H,"Affectée",Activités!O:O,4) -> 0 | F19: =SUMIFS(Activités!F:F,Activités!H:H,"Développée",Activités!O:O,4) -> 0 | G19: =SUMIFS(Activités!F:F,Activités!H:H,"Terminée",Activités!O:O,4) -> 0 | H19: =SUMIFS(Activités!F:F,Activités!H:H,"Rejetée",Activités!O:O,4) -> 0
A20: 5 | B20: =SUMIFS(Activités!F:F,Activités!H:H,"Créée",Activités!O:O,5) -> 0 | C20: =SUMIFS(Activités!F:F,Activités!H:H,"Prête",Activités!O:O,5) -> 0 | D20: =SUMIFS(Activités!F:F,Activités!H:H,"Evaluée",Activités!O:O,5) -> 0 | E20: =SUMIFS(Activités!F:F,Activités!H:H,"Affectée",Activités!O:O,5) -> 0 | F20: =SUMIFS(Activités!F:F,Activités!H:H,"Développée",Activités!O:O,5) -> 0 | G20: =SUMIFS(Activités!F:F,Activités!H:H,"Terminée",Activités!O:O,5) -> 0 | H20: =SUMIFS(Activités!F:F,Activités!H:H,"Rejetée",Activités!O:O,5) -> 0
A21: 6 | B21: =SUMIFS(Activités!F:F,Activités!H:H,"Créée",Activités!O:O,6) -> 0 | C21: =SUMIFS(Activités!F:F,Activités!H:H,"Prête",Activités!O:O,6) -> 0 | D21: =SUMIFS(Activités!F:F,Activités!H:H,"Evaluée",Activités!O:O,6) -> 0 | E21: =SUMIFS(Activités!F:F,Activités!H:H,"Affectée",Activités!O:O,6) -> 0 | F21: =SUMIFS(Activités!F:F,Activités!H:H,"Développée",Activités!O:O,6) -> 0 | G21: =SUMIFS(Activités!F:F,Activités!H:H,"Terminée",Activités!O:O,6) -> 0 | H21: =SUMIFS(Activités!F:F,Activités!H:H,"Rejetée",Activités!O:O,6) -> 0
A22: 7 | B22: =SUMIFS(Activités!F:F,Activités!H:H,"Créée",Activités!O:O,7) -> 0 | C22: =SUMIFS(Activités!F:F,Activités!H:H,"Prête",Activités!O:O,7) -> 0 | D22: =SUMIFS(Activités!F:F,Activités!H:H,"Evaluée",Activités!O:O,7) -> 0 | E22: =SUMIFS(Activités!F:F,Activités!H:H,"Affectée",Activités!O:O,7) -> 0 | F22: =SUMIFS(Activités!F:F,Activités!H:H,"Développée",Activités!O:O,7) -> 0 | G22: =SUMIFS(Activités!F:F,Activités!H:H,"Terminée",Activités!O:O,7) -> 0 | H22: =SUMIFS(Activités!F:F,Activités!H:H,"Rejetée",Activités!O:O,7) -> 0
A23: 8 | B23: =SUMIFS(Activités!F:F,Activités!H:H,"Créée",Activités!O:O,8) -> 0 | C23: =SUMIFS(Activités!F:F,Activités!H:H,"Prête",Activités!O:O,8) -> 0 | D23: =SUMIFS(Activités!F:F,Activités!H:H,"Evaluée",Activités!O:O,8) -> 0 | E23: =SUMIFS(Activités!F:F,Activités!H:H,"Affectée",Activités!O:O,8) -> 0 | F23: =SUMIFS(Activités!F:F,Activités!H:H,"Développée",Activités!O:O,8) -> 0 | G23: =SUMIFS(Activités!F:F,Activités!H:H,"Terminée",Activités!O:O,8) -> 0 | H23: =SUMIFS(Activités!F:F,Activités!H:H,"Rejetée",Activités!O:O,8) -> 0
B26: Date début | C26: Date fin | D26: Max PPS | E26: point reel créée | F26: point réel prête | G26: point réel Evaluée | H26: point réel Affectée | I26: point réel Développée | J26: point réel Terminée | K26: point Rejetée | L26: Point Moy x #sans point | M26: # créée | N26: # prête | O26: # Evaluée | P26: # Affectée | Q26: # Développée | R26: # Terminée | S26: # Rejetée | T26: # sans point | U26: Non Vide | V26: manquant | W26: mal saisie
A27: All
A28: 1 | B28: 2016-06-27 | C28: 2016-07-13 | D28: 88 | E28: =SUMIFS(Activités!L:L,Activités!H:H,"Créée",Activités!O:O,1) -> 0 | F28: =SUMIFS(Activités!L:L,Activités!H:H,"Prête",Activités!O:O,1) -> 0 | G28: =SUMIFS(Activités!L:L,Activités!H:H,"Evaluée",Activités!O:O,1) -> 0 | H28: =SUMIFS(Activités!L:L,Activités!H:H,"Affectée",Activités!O:O,1) -> 0 | I28: =SUMIFS(Activités!L:L,Activités!H:H,"Développée",Activités!O:O,1) -> 48 | J28: =SUMIFS(Activités!L:L,Activités!H:H,"Terminée",Activités!O:O,1) -> 86.5
A29: 2 | B29: 2016-08-29 | C29: 2016-09-09 | D29: 64 | E29: =SUMIFS(Activités!L:L,Activités!H:H,"Créée",Activités!O:O,2) -> 0 | F29: =SUMIFS(Activités!L:L,Activités!H:H,"Prête",Activités!O:O,2) -> 0 | G29: =SUMIFS(Activités!L:L,Activités!H:H,"Evaluée",Activités!O:O,2) -> 0 | H29: =SUMIFS(Activités!L:L,Activités!H:H,"Affectée",Activités!O:O,2) -> 0 | I29: =SUMIFS(Activités!L:L,Activités!H:H,"Développée",Activités!O:O,2) -> 0 | J29: =SUMIFS(Activités!L:L,Activités!H:H,"Terminée",Activités!O:O,2) -> 0
A30: 3 | B30: 2016-09-13 | C30: 2016-09-23 | D30: 64 | E30: =SUMIFS(Activités!L:L,Activités!H:H,"Créée",Activités!O:O,3) -> 0 | F30: =SUMIFS(Activités!L:L,Activités!H:H,"Prête",Activités!O:O,3) -> 0 | G30: =SUMIFS(Activités!L:L,Activités!H:H,"Evaluée",Activités!O:O,3) -> 0 | H30: =SUMIFS(Activités!L:L,Activités!H:H,"Affectée",Activités!O:O,3) -> 0 | I30: =SUMIFS(Activités!L:L,Activités!H:H,"Développée",Activités!O:O,3) -> 0 | J30: =SUMIFS(Activités!L:L,Activités!H:H,"Terminée",Activités!O:O,3) -> 0
A31: 4 | E31: =SUMIFS(Activités!L:L,Activités!H:H,"Créée",Activités!O:O,4) -> 0 | F31: =SUMIFS(Activités!L:L,Activités!H:H,"Prête",Activités!O:O,4) -> 0 | G31: =SUMIFS(Activités!L:L,Activités!H:H,"Evaluée",Activités!O:O,4) -> 0 | H31: =SUMIFS(Activités!L:L,Activités!H:H,"Affectée",Activités!O:O,4) -> 0 | I31: =SUMIFS(Activités!L:L,Activités!H:H,"Développée",Activités!O:O,4) -> 0 | J31: =SUMIFS(Activités!L:L,Activités!H:H,"Terminée",Activités!O:O,4) -> 0
A32: 5 | E32: =SUMIFS(Activités!L:L,Activités!H:H,"Créée",Activités!O:O,5) -> 0 | F32: =SUMIFS(Activités!L:L,Activités!H:H,"Prête",Activités!O:O,5) -> 0 | G32: =SUMIFS(Activités!L:L,Activités!H:H,"Evaluée",Activités!O:O,5) -> 0 | H32: =SUMIFS(Activités!L:L,Activités!H:H,"Affectée",Activités!O:O,5) -> 0 | I32: =SUMIFS(Activités!L:L,Activités!H:H,"Développée",Activités!O:O,5) -> 0 | J32: =SUMIFS(Activités!L:L,Activités!H:H,"Terminée",Activités!O:O,5) -> 0
A33: 6 | E33: =SUMIFS(Activités!L:L,Activités!H:H,"Créée",Activités!O:O,6) -> 0 | F33: =SUMIFS(Activités!L:L,Activités!H:H,"Prête",Activités!O:O,6) -> 0 | G33: =SUMIFS(Activités!L:L,Activités!H:H,"Evaluée",Activités!O:O,6) -> 0 | H33: =SUMIFS(Activités!L:L,Activités!H:H,"Affectée",Activités!O:O,6) -> 0 | I33: =SUMIFS(Activités!L:L,Activités!H:H,"Développée",Activités!O:O,6) -> 0 | J33: =SUMIFS(Activités!L:L,Activités!H:H,"Terminée",Activités!O:O,6) -> 0
A34: 7 | E34: =SUMIFS(Activités!L:L,Activités!H:H,"Créée",Activités!O:O,7) -> 0 | F34: =SUMIFS(Activités!L:L,Activités!H:H,"Prête",Activités!O:O,7) -> 0 | G34: =SUMIFS(Activités!L:L,Activités!H:H,"Evaluée",Activités!O:O,7) -> 0 | H34: =SUMIFS(Activités!L:L,Activités!H:H,"Affectée",Activités!O:O,7) -> 0 | I34: =SUMIFS(Activités!L:L,Activités!H:H,"Développée",Activités!O:O,7) -> 0 | J34: =SUMIFS(Activités!L:L,Activités!H:H,"Terminée",Activités!O:O,7) -> 0
A35: 8 | E35: =SUMIFS(Activités!L:L,Activités!H:H,"Créée",Activités!O:O,8) -> 0 | F35: =SUMIFS(Activités!L:L,Activités!H:H,"Prête",Activités!O:O,8) -> 0 | G35: =SUMIFS(Activités!L:L,Activités!H:H,"Evaluée",Activités!O:O,8) -> 0 | H35: =SUMIFS(Activités!L:L,Activités!H:H,"Affectée",Activités!O:O,8) -> 0 | I35: =SUMIFS(Activités!L:L,Activités!H:H,"Développée",Activités!O:O,8) -> 0 | J35: =SUMIFS(Activités!L:L,Activités!H:H,"Terminée",Activités!O:O,8) -> 0
A38: jour J | B38: 12
A39: jour J+1 | B39: 7
A40: jour +3 | B40: 5

Sheet Synthèse
I44: Estimé/reel pour les terminés slt

Sheet Règles
A1: # | B1: description
A2: 1 | B2: SI charge d'une pers > charge sprint, mettre la cellulle en rouge
A3: 2 | B3: les activités sans points sont arbitrairement évaluées à la moyenne des activités avevc points. Le taux d'incertitude représenté est bien évidemment indicatif
A4: 3 | B4: Si le nb d'activté sans point est >0 apres la date de début du sprint, mettre la col en rouge
A5: 4 | C5: date | D5: valeur calculée à partir de B3-H3, mais uniquement quand je modifie la date dans B12
A6: 5 | C6: date
A7: 6 | C7: date
A8: 7
A9: 8
A10: 9
A11: 10
A12: 11
A13: 12
A14: 13
A15: 14
A16: 15
A17: 16
A18: 17
A19: 18
A20: 19
A21: 20
A22: 21
A23: 22
A24: 23
A25: 24
A26: 25
A27: 26
A28: 27
A29: 28
A30: 29
A31: 30
A32: 31
A33: 32
